[Event "CZE-ch Youth G10-G12-G14 2022"]
[Site "Luhacovice"]
[Date "2022.03.17"]
[Round "7.14"]
[White "Slivova, Linda"]
[Black "Stehlikova, Vanessa"]
[Result "1-0"]
[ECO "C26"]
[WhiteElo "1298"]
[BlackElo "1039"]
[Annotator "NA"]
[PlyCount "79"]
[EventDate "2022.03.12"]
[EventType "swiss"]
[EventCountry "CZE"]
[SourceTitle "playchess.com"]
[Source "ChessBase"]
[SourceQuality "1"]
[TimeControl "40/5400+30:1800+30"]

1. e4 {[%emt 0:00:03]} e5 {[%emt 0:00:07]} 2. Nc3 {[%emt 0:00:07]} Nf6 {[%emt 0:00:12]} 3. g3 {[%emt 0:00:11]} Bc5 {[%emt 0:01:04]} 4. Bg2 {[%emt 0:00:14]} Nc6 {[%emt 0:00:22]} 5. Nge2 {[%emt 0:00:43]} O-O {[%emt 0:01:37]} 6. O-O {[%emt 0:00:21]} d6 {[%emt 0:02:06]} 7. Na4 {[%emt 0:00:15]} Bb6 {[%emt 0:00:49]} 8. Nxb6 {[%emt 0:00:25]} axb6 {[%emt 0:00:19]} 9. a3 {[%emt 0:01:15]} Be6 {[%emt 0:01:13]} 10. d3 {[%emt 0:01:47]} d5 {[%emt 0:00:43]} 11. Bg5 {[%emt 0:05:52]} d4 {[%emt 0:01:44]} 12. f4 {[%emt 0:04:09]} h6 {[%emt 0:09:02]} 13. fxe5 {[%emt 0:01:22]} hxg5 {[%emt 0:01:07]} 14. exf6 {[%emt 0:00:26]} gxf6 {[%emt 0:00:12]} 15. h3 {[%emt 0:04:12]} Kg7 {[%emt 0:47:53]} 16. Qe1 {[%emt 0:03:47]} Rh8 {[%emt 0:00:18]} 17. g4 {[%emt 0:00:14]} Rh6 {[%emt 0:01:58]} 18. Qf2 {[%emt 0:01:44]} Qd6 {[%emt 0:14:47]} 19. Ng3 {[%emt 0:02:45]} f5 {[%emt 0:13:02]} 20. Nxf5+ {[%emt 0:01:24]} Bxf5 {[%emt 0:00:07]} 21. Qxf5 {[%emt 0:00:31]} Qg6 {[%emt 0:00:48]} 22. Qxg6+ {[%emt 0:01:19]} Kxg6 {[%emt 0:00:03]} 23. Rf2 {[%emt 0:01:06]} Ne5 {[%emt 0:00:48]} 24. Rf5 {[%emt 0:01:10]} f6 {[%emt 0:00:09]} 25. Raf1 {[%emt 0:00:19]} Rf8 {[%emt 0:00:24]} 26. Rxe5 {[%emt 0:00:35]} fxe5 {[%emt 0:00:34]} 27. Rxf8 {[%emt 0:00:08]} Rh7 {[%emt 0:00:13]} 28. Rf5 {[%emt 0:01:00]} Re7 {[%emt 0:00:12]} 29. Kf2 {[%emt 0:00:16]} c5 {[%emt 0:00:08]} 30. Kg3 {[%emt 0:01:12]} b5 {[%emt 0:00:21]} 31. h4 {[%emt 0:00:53]} gxh4+ {[%emt 0:00:06]} 32. Kxh4 {[%emt 0:00:13]} c4 {[%emt 0:00:03]} 33. Bf1 {[%emt 0:04:14]} Rh7+ {[%emt 0:00:36]} 34. Kg3 {[%emt 0:03:07]} c3 {[%emt 0:00:26]} 35. bxc3 {[%emt 0:00:46]} dxc3 {[%emt 0:00:10]} 36. Rxe5 {[%emt 0:00:17]} Rh1 {[%emt 0:00:19]} 37. Rf5 {[%emt 0:00:17]} Rg1+ {[%emt 0:00:48]} 38. Kh3 {[%emt 0:01:56]} Rh1+ {[%emt 0:00:11]} 39. Kg2 {[%emt 0:00:11]} Rh4 {[%emt 0:00:22]} 40. Be2 {[%emt 0:00:08]} 1-0

[Event "CZE-ch Youth G10-G12-G14 2022"]
[Site "Luhacovice"]
[Date "2022.03.17"]
[Round "7.15"]
[White "Hladka, Leontyna"]
[Black "Markina, Sofiia"]
[Result "1/2-1/2"]
[ECO "B40"]
[WhiteElo "1134"]
[BlackElo "1367"]
[Annotator "NA"]
[PlyCount "71"]
[EventDate "2022.03.12"]
[EventType "swiss"]
[EventCountry "CZE"]
[SourceTitle "playchess.com"]
[Source "ChessBase"]
[SourceQuality "1"]
[TimeControl "40/5400+30:1800+30"]

1. e4 {[%emt 0:00:03]} c5 {[%emt 0:00:05]} 2. Nf3 {[%emt 0:00:10]} e6 {[%emt 0:00:06]} 3. Bb5 {[%emt 0:01:05]} a6 {[%emt 0:00:40]} 4. Bc4 {[%emt 0:01:42]} d6 {[%emt 0:00:31]} 5. c3 {[%emt 0:00:46]} Nf6 {[%emt 0:00:13]} 6. d3 {[%emt 0:00:48]} Be7 {[%emt 0:00:26]} 7. Bb3 {[%emt 0:00:38]} O-O {[%emt 0:00:20]} 8. O-O {[%emt 0:00:34]} b6 {[%emt 0:01:35]} 9. Bc2 {[%emt 0:02:58]} Bb7 {[%emt 0:00:32]} 10. Nbd2 {[%emt 0:02:14]} Nc6 {[%emt 0:10:20]} 11. Nc4 {[%emt 0:02:05]} b5 {[%emt 0:05:01]} 12. Ne3 {[%emt 0:01:21]} Rc8 {[%emt 0:01:35]} 13. b3 {[%emt 0:00:50]} Qc7 {[%emt 0:01:11]} 14. Ba3 {[%emt 0:02:23]} d5 {[%emt 0:01:21]} 15. exd5 {[%emt 0:01:57]} Nxd5 {[%emt 0:03:28]} 16. Nxd5 {[%emt 0:00:49]} exd5 {[%emt 0:00:09]} 17. Rc1 {[%emt 0:03:59]} Bd6 {[%emt 0:05:33]} 18. d4 {[%emt 0:02:48]} b4 {[%emt 0:04:07]} 19. Bb2 {[%emt 0:05:18]} bxc3 {[%emt 0:01:10]} 20. Bxc3 {[%emt 0:00:26]} cxd4 {[%emt 0:00:10]} 21. Bxd4 {[%emt 0:05:26]} Ba3 {[%emt 0:00:35]} 22. Rb1 {[%emt 0:00:59]} Nxd4 {[%emt 0:00:44]} 23. Nxd4 {[%emt 0:00:13]} Bd6 {[%emt 0:00:13]} 24. Qh5 {[%emt 0:01:57]} g6 {[%emt 0:00:29]} 25. Qh4 {[%emt 0:08:20]} Be5 {[%emt 0:01:42]} 26. Rfc1 {[%emt 0:07:42]} Bf4 {[%emt 0:02:00]} 27. Rd1 {[%emt 0:02:00]} Qe5 {[%emt 0:00:38]} 28. Nf3 {[%emt 0:02:31]} Qb8 {[%emt 0:11:37]} 29. Bd3 {[%emt 0:04:30]} Rc3 {[%emt 0:05:30]} 30. Ng5 {[%emt 0:03:15]} Bxg5 {[%emt 0:03:30]} 31. Qxg5 {[%emt 0:00:11]} Re8 {[%emt 0:09:19]} 32. Qf6 {[%emt 0:01:46]} Qc8 {[%emt 0:05:10]} 33. h3 {[%emt 0:02:50]} Re6 {[%emt 0:05:21]} 34. Qd4 {[%emt 0:01:16]} Qc6 {[%emt 0:06:59]} 35. Re1 {[%emt 0:02:03]} Rxe1+ {[%emt 0:03:21]} 36. Rxe1 {[%emt 0:00:16]} 1/2-1/2

[Event "CZE-ch Youth G10-G12-G14 2022"]
[Site "Luhacovice"]
[Date "2022.03.17"]
[Round "7.16"]
[White "Lukaskova Ellen"]
[Black "Stara, Zuzana"]
[Result "1/2-1/2"]
[ECO "B90"]
[WhiteElo "1058"]
[BlackElo "1322"]
[Annotator "NA"]
[PlyCount "65"]
[EventDate "2022.03.12"]
[EventType "swiss"]
[EventCountry "CZE"]
[SourceTitle "playchess.com"]
[Source "ChessBase"]
[SourceQuality "1"]
[TimeControl "40/5400+30:1800+30"]

1. e4 {[%emt 0:00:03]} c5 {[%emt 0:00:04]} 2. Nf3 {[%emt 0:00:05]} Nf6 {[%emt 0:00:19]} 3. Nc3 {[%emt 0:00:42]} d6 {[%emt 0:00:10]} 4. d4 {[%emt 0:01:53]} cxd4 {[%emt 0:00:08]} 5. Nxd4 {[%emt 0:00:32]} a6 {[%emt 0:00:42]} 6. Nf3 {[%emt 0:03:18]} Nc6 {[%emt 0:01:34]} 7. Bg5 {[%emt 0:03:00]} Bg4 {[%emt 0:01:33]} 8. Bxf6 {[%emt 0:02:05]} exf6 {[%emt 0:09:15]} 9. Be2 {[%emt 0:02:49]} Be7 {[%emt 0:03:23]} 10. Nd4 {[%emt 0:02:26]} Bd7 {[%emt 0:06:24]} 11. Nf5 {[%emt 0:04:07]} Bxf5 {[%emt 0:02:50]} 12. exf5 {[%emt 0:02:12]} Rc8 {[%emt 0:01:50]} 13. Bf3 {[%emt 0:03:17]} O-O {[%emt 0:06:47]} 14. O-O {[%emt 0:02:39]} Qd7 {[%emt 0:07:55]} 15. Be4 {[%emt 0:06:20]} Bd8 {[%emt 0:02:31]} 16. Qd5 {[%emt 0:04:12]} Re8 {[%emt 0:05:58]} 17. Qd3 {[%emt 0:05:35]} Ne5 {[%emt 0:06:17]} 18. Qd5 {[%emt 0:04:15]} b5 {[%emt 0:04:03]} 19. Qb7 {[%emt 0:04:52]} Ba5 {[%emt 0:07:44]} 20. Qxd7 {[%emt 0:04:43]} Nxd7 {[%emt 0:00:10]} 21. Bb7 {[%emt 0:02:00]} Rc7 {[%emt 0:02:11]} 22. Bxa6 {[%emt 0:01:47]} Bxc3 {[%emt 0:06:21]} 23. bxc3 {[%emt 0:01:01]} Rb8 {[%emt 0:04:07]} 24. a4 {[%emt 0:02:58]} bxa4 {[%emt 0:02:06]} 25. Rxa4 {[%emt 0:01:29]} Nc5 {[%emt 0:00:53]} 26. Ra2 {[%emt 0:02:40]} Nxa6 {[%emt 0:00:47]} 27. Rxa6 {[%emt 0:00:25]} Rxc3 {[%emt 0:00:18]} 28. Rxd6 {[%emt 0:00:53]} Rxc2 {[%emt 0:00:28]} 29. g4 {[%emt 0:01:19]} Rc4 {[%emt 0:01:10]} 30. f3 {[%emt 0:01:30]} Rc2 {[%emt 0:00:34]} 31. Rf2 {[%emt 0:01:17]} Rc1+ {[%emt 0:01:21]} 32. Rf1 {[%emt 0:01:05]} Rc3 {[%emt 0:01:27]} 33. Rfd1 {[%emt 0:02:45]} 1/2-1/2

[Event "CZE-ch Youth G10-G12-G14 2022"]
[Site "Luhacovice"]
[Date "2022.03.17"]
[Round "7.17"]
[White "Horkova, Tereza"]
[Black "Vaclavkova Klara"]
[Result "1-0"]
[ECO "C53"]
[WhiteElo "1375"]
[BlackElo "1000"]
[Annotator "NA"]
[PlyCount "92"]
[EventDate "2022.03.12"]
[EventType "swiss"]
[EventCountry "CZE"]
[SourceTitle "playchess.com"]
[Source "ChessBase"]
[SourceQuality "1"]
[TimeControl "40/5400+30:1800+30"]

1. e4 {[%emt 0:00:02]} e5 {[%emt 0:00:07]} 2. Nf3 {[%emt 0:00:06]} Nc6 {[%emt 0:00:07]} 3. Bc4 {[%emt 0:00:05]} Bc5 {[%emt 0:00:31]} 4. c3 {[%emt 0:00:13]} d6 {[%emt 0:01:55]} 5. d4 {[%emt 0:07:20]} exd4 {[%emt 0:02:17]} 6. cxd4 {[%emt 0:00:14]} Bb6 {[%emt 0:00:45]} 7. O-O {[%emt 0:05:54]} Bg4 {[%emt 0:01:19]} 8. Qd3 {[%emt 0:01:34]} Qf6 {[%emt 0:01:36]} 9. e5 {[%emt 0:22:38]} dxe5 {[%emt 0:01:32]} 10. dxe5 {[%emt 0:00:25]} Nxe5 {[%emt 0:00:55]} 11. Re1 {[%emt 0:03:07]} Ne7 {[%emt 0:05:02]} 12. Rxe5 {[%emt 0:10:35]} Bxf3 {[%emt 0:02:08]} 13. Rxe7+ {[%emt 0:00:28]} Qxe7 {[%emt 0:00:48]} 14. gxf3 {[%emt 0:03:57]} Rd8 {[%emt 0:02:10]} 15. Qe2 {[%emt 0:04:16]} Rd7 {[%emt 0:01:42]} 16. Qxe7+ {[%emt 0:04:44]} Rxe7 {[%emt 0:00:05]} 17. Kf1 {[%emt 0:02:36]} Kd7 {[%emt 0:00:29]} 18. Bf4 {[%emt 0:01:16]} Rhe8 {[%emt 0:01:11]} 19. Nc3 {[%emt 0:02:11]} h6 {[%emt 0:01:16]} 20. Nd5 {[%emt 0:03:40]} Re6 {[%emt 0:00:28]} 21. h4 {[%emt 0:04:24]} f6 {[%emt 0:01:23]} 22. Rd1 {[%emt 0:03:19]} Kc8 {[%emt 0:00:38]} 23. h5 {[%emt 0:05:14]} f5 {[%emt 0:00:49]} 24. Bd3 {[%emt 0:08:41]} g6 {[%emt 0:02:19]} 25. hxg6 {[%emt 0:00:12]} Rxg6 {[%emt 0:00:15]} 26. Bxf5+ {[%emt 0:00:15]} Rge6 {[%emt 0:00:54]} 27. Bxe6+ {[%emt 0:00:00]} Rxe6 {[%emt 0:00:24]} 28. Rc1 {[%emt 0:00:00]} Ba5 {[%emt 0:01:27]} 29. Nxc7 {[%emt 0:00:07]} Rg6 {[%emt 0:01:03]} 30. Nd5+ {[%emt 0:01:18]} Kd8 {[%emt 0:01:37]} 31. b4 {[%emt 0:00:14]} Bb6 {[%emt 0:00:24]} 32. Nxb6 {[%emt 0:00:05]} axb6 {[%emt 0:00:17]} 33. Ke2 {[%emt 0:01:15]} h5 {[%emt 0:00:16]} 34. Rh1 {[%emt 0:00:16]} Rf6 {[%emt 0:00:46]} 35. Bg5 {[%emt 0:00:06]} Ke7 {[%emt 0:01:02]} 36. Bxf6+ {[%emt 0:00:08]} Kxf6 {[%emt 0:00:11]} 37. Rxh5 {[%emt 0:00:04]} Ke6 {[%emt 0:00:38]} 38. Ke3 {[%emt 0:00:10]} Kd6 {[%emt 0:00:07]} 39. Ke4 {[%emt 0:00:09]} Kc6 {[%emt 0:01:29]} 40. f4 {[%emt 0:00:06]} Kd7 {[%emt 0:00:31]} 41. f5 {[%emt 0:30:11]} Ke8 {[%emt 0:30:09]} 42. Ke5 {[%emt 0:00:11]} Kf7 {[%emt 0:00:29]} 43. f4 {[%emt 0:00:51]} b5 {[%emt 0:00:13]} 44. Rh7+ {[%emt 0:00:13]} Kf8 {[%emt 0:00:12]} 45. f6 {[%emt 0:00:16]} b6 {[%emt 0:00:26]} 46. Ke6 {[%emt 0:00:34]} Ke8 {[%emt 0:00:25]} 1-0

[Event "CZE-ch Youth G10-G12-G14 2022"]
[Site "Luhacovice"]
[Date "2022.03.17"]
[Round "7.18"]
[White "Barteckova, Valerie"]
[Black "Bartova Hana"]
[Result "1-0"]
[ECO "D02"]
[WhiteElo "1250"]
[BlackElo "1000"]
[Annotator "NA"]
[PlyCount "83"]
[EventDate "2022.03.12"]
[EventType "swiss"]
[EventCountry "CZE"]
[SourceTitle "playchess.com"]
[Source "ChessBase"]
[SourceQuality "1"]
[TimeControl "40/5400+30:1800+30"]

1. d4 {[%emt 0:00:04]} d5 {[%emt 0:00:08]} 2. Nf3 {[%emt 0:00:11]} Nf6 {[%emt 0:01:30]} 3. Bf4 {[%emt 0:00:22]} Bf5 {[%emt 0:02:39]} 4. e3 {[%emt 0:00:32]} e6 {[%emt 0:01:10]} 5. Bd3 {[%emt 0:00:42]} Bxd3 {[%emt 0:02:06]} 6. Qxd3 {[%emt 0:00:17]} c6 {[%emt 0:08:19]} 7. c3 {[%emt 0:01:33]} Be7 {[%emt 0:01:07]} 8. O-O {[%emt 0:01:20]} O-O {[%emt 0:00:35]} 9. h3 {[%emt 0:00:27]} Nbd7 {[%emt 0:01:51]} 10. Nbd2 {[%emt 0:00:55]} Re8 {[%emt 0:01:39]} 11. e4 {[%emt 0:00:44]} dxe4 {[%emt 0:01:30]} 12. Nxe4 {[%emt 0:00:16]} Nxe4 {[%emt 0:01:21]} 13. Qxe4 {[%emt 0:00:26]} Nf6 {[%emt 0:04:25]} 14. Qc2 {[%emt 0:00:57]} Bf8 {[%emt 0:04:16]} 15. Rfe1 {[%emt 0:01:22]} Qe7 {[%emt 0:01:19]} 16. Rad1 {[%emt 0:04:18]} Rad8 {[%emt 0:00:50]} 17. Qb3 {[%emt 0:03:44]} b5 {[%emt 0:02:37]} 18. Ne5 {[%emt 0:03:12]} Qb7 {[%emt 0:05:18]} 19. Bh2 {[%emt 0:04:22]} Nd7 {[%emt 0:04:21]} 20. Nxd7 {[%emt 0:16:55]} Rxd7 {[%emt 0:00:42]} 21. Be5 {[%emt 0:00:24]} Rd5 {[%emt 0:01:22]} 22. c4 {[%emt 0:02:02]} Rd7 {[%emt 0:02:58]} 23. c5 {[%emt 0:01:09]} Rd5 {[%emt 0:03:08]} 24. Qg3 {[%emt 0:05:13]} Qd7 {[%emt 0:04:22]} 25. Qg4 {[%emt 0:05:00]} g6 {[%emt 0:04:41]} 26. Qf4 {[%emt 0:08:46]} Bg7 {[%emt 0:05:53]} 27. Bxg7 {[%emt 0:01:01]} Kxg7 {[%emt 0:00:20]} 28. Qg4 {[%emt 0:08:33]} Rd8 {[%emt 0:02:23]} 29. Qf3 {[%emt 0:03:08]} Rxd4 {[%emt 0:05:27]} 30. Rxd4 {[%emt 0:00:21]} Qxd4 {[%emt 0:00:13]} 31. Qxc6 {[%emt 0:00:24]} Qxb2 {[%emt 0:00:41]} 32. Qc7 {[%emt 0:00:38]} Re8 {[%emt 0:02:48]} 33. Qxa7 {[%emt 0:00:29]} Qc3 {[%emt 0:02:14]} 34. Re3 {[%emt 0:01:56]} Qa1+ {[%emt 0:01:13]} 35. Kh2 {[%emt 0:00:17]} Qc1 {[%emt 0:02:48]} 36. Rf3 {[%emt 0:02:14]} Rf8 {[%emt 0:01:29]} 37. Qc7 {[%emt 0:05:46]} Qc4 {[%emt 0:01:24]} 38. a3 {[%emt 0:00:47]} Qd5 {[%emt 0:01:09]} 39. c6 {[%emt 0:01:06]} Qd8 {[%emt 0:00:54]} 40. Rxf7+ {[%emt 0:01:45]} Kh6 {[%emt 0:02:12]} 41. Qf4+ {[%emt 0:31:32]} g5 {[%emt 0:31:39]} 42. Rxf8 {[%emt 0:01:28]} 1-0

[Event "CZE-ch Youth G10-G12-G14 2022"]
[Site "Luhacovice"]
[Date "2022.03.17"]
[Round "7.19"]
[White "Stavova, Lucie"]
[Black "Barteckova, Nikol"]
[Result "0-1"]
[ECO "B23"]
[WhiteElo "1048"]
[BlackElo "1140"]
[Annotator "NA"]
[PlyCount "126"]
[EventDate "2022.03.12"]
[EventType "swiss"]
[EventCountry "CZE"]
[SourceTitle "playchess.com"]
[Source "ChessBase"]
[SourceQuality "1"]
[TimeControl "40/5400+30:1800+30"]

1. e4 {[%emt 0:00:06]} c5 {[%emt 0:00:10]} 2. Nc3 {[%emt 0:00:12]} a6 {[%emt 0:00:16]} 3. g3 {[%emt 0:00:15]} b5 {[%emt 0:00:14]} 4. Bg2 {[%emt 0:05:46]} Bb7 {[%emt 0:01:31]} 5. d3 {[%emt 0:02:58]} e6 {[%emt 0:01:34]} 6. Nh3 {[%emt 0:02:54]} d6 {[%emt 0:01:40]} 7. O-O {[%emt 0:01:26]} Nf6 {[%emt 0:02:42]} 8. f4 {[%emt 0:03:16]} Nbd7 {[%emt 0:02:40]} 9. g4 {[%emt 0:01:38]} Nb6 {[%emt 0:05:45]} 10. g5 {[%emt 0:06:33]} Nfd7 {[%emt 0:01:17]} 11. Be3 {[%emt 0:01:13]} Be7 {[%emt 0:00:47]} 12. d4 {[%emt 0:02:27]} Nc4 {[%emt 0:01:53]} 13. Qc1 {[%emt 0:02:37]} Qb6 {[%emt 0:02:10]} 14. d5 {[%emt 0:03:01]} Nxe3 {[%emt 0:02:33]} 15. Qxe3 {[%emt 0:00:26]} Qc7 {[%emt 0:06:31]} 16. a3 {[%emt 0:06:14]} Nb6 {[%emt 0:01:37]} 17. b3 {[%emt 0:01:43]} Rc8 {[%emt 0:01:41]} 18. f5 {[%emt 0:02:32]} exd5 {[%emt 0:02:24]} 19. exd5 {[%emt 0:00:44]} Kf8 {[%emt 0:05:14]} 20. g6 {[%emt 0:03:15]} Bf6 {[%emt 0:02:50]} 21. Qd2 {[%emt 0:02:43]} Bd4+ {[%emt 0:03:05]} 22. Kh1 {[%emt 0:00:34]} Re8 {[%emt 0:02:03]} 23. gxf7 {[%emt 0:01:00]} Qxf7 {[%emt 0:00:36]} 24. Ng5 {[%emt 0:02:43]} Qf6 {[%emt 0:01:30]} 25. Ne6+ {[%emt 0:03:44]} Kg8 {[%emt 0:03:54]} 26. Nxd4 {[%emt 0:02:56]} Qxd4 {[%emt 0:03:16]} 27. Qxd4 {[%emt 0:05:59]} cxd4 {[%emt 0:00:10]} 28. Ne4 {[%emt 0:00:39]} Bxd5 {[%emt 0:00:13]} 29. Nxd6 {[%emt 0:01:19]} Bxg2+ {[%emt 0:01:04]} 30. Kxg2 {[%emt 0:01:01]} Re2+ {[%emt 0:00:09]} 31. Kg1 {[%emt 0:01:22]} Rxc2 {[%emt 0:00:17]} 32. Rfe1 {[%emt 0:00:12]} h6 {[%emt 0:00:13]} 33. a4 {[%emt 0:05:35]} bxa4 {[%emt 0:01:47]} 34. bxa4 {[%emt 0:00:47]} Nc4 {[%emt 0:00:52]} 35. Ne4 {[%emt 0:01:32]} Nd2 {[%emt 0:01:36]} 36. Nxd2 {[%emt 0:04:22]} Rxd2 {[%emt 0:00:20]} 37. Rad1 {[%emt 0:00:25]} Rc2 {[%emt 0:02:22]} 38. Rxd4 {[%emt 0:00:19]} Rc5 {[%emt 0:00:09]} 39. Rf4 {[%emt 0:02:22]} Kf7 {[%emt 0:00:28]} 40. Re6 {[%emt 0:01:45]} Ra5 {[%emt 0:00:33]} 41. Rb6 {[%emt 0:30:49]} Re8 {[%emt 0:30:40]} 42. Kf2 {[%emt 0:01:07]} h5 {[%emt 0:03:08]} 43. h4 {[%emt 0:00:39]} Ree5 {[%emt 0:01:15]} 44. f6 {[%emt 0:02:15]} Rf5 {[%emt 0:02:11]} 45. Rxf5 {[%emt 0:02:17]} Rxf5+ {[%emt 0:00:01]} 46. Ke3 {[%emt 0:00:19]} Rxf6 {[%emt 0:01:18]} 47. Rb4 {[%emt 0:02:01]} Re6+ {[%emt 0:00:57]} 48. Kf4 {[%emt 0:00:39]} Kf6 {[%emt 0:00:35]} 49. Kg3 {[%emt 0:00:25]} g5 {[%emt 0:02:14]} 50. hxg5+ {[%emt 0:00:13]} Kxg5 {[%emt 0:00:11]} 51. Kh3 {[%emt 0:00:45]} Re5 {[%emt 0:00:35]} 52. Rc4 {[%emt 0:01:24]} Re3+ {[%emt 0:01:07]} 53. Kh2 {[%emt 0:00:30]} Rf3 {[%emt 0:00:34]} 54. Rd4 {[%emt 0:01:15]} Rf4 {[%emt 0:10:46]} 55. Rxf4 {[%emt 0:00:50]} Kxf4 {[%emt 0:00:17]} 56. Kg2 {[%emt 0:01:44]} a5 {[%emt 0:00:11]} 57. Kh3 {[%emt 0:00:24]} Ke4 {[%emt 0:00:14]} 58. Kh4 {[%emt 0:00:50]} Kd4 {[%emt 0:00:09]} 59. Kxh5 {[%emt 0:00:08]} Kc4 {[%emt 0:00:13]} 60. Kg4 {[%emt 0:01:24]} Kb4 {[%emt 0:00:12]} 61. Kf3 {[%emt 0:00:20]} Kxa4 {[%emt 0:00:20]} 62. Ke2 {[%emt 0:00:09]} Kb3 {[%emt 0:00:24]} 63. Kd2 {[%emt 0:00:32]} Kb2 {[%emt 0:00:14]} 0-1

[Event "CZE-ch Youth G10-G12-G14 2022"]
[Site "Luhacovice"]
[Date "2022.03.17"]
[Round "7.20"]
[White "Bouchalova, Kveta"]
[Black "Nova Anezka"]
[Result "1-0"]
[ECO "C30"]
[WhiteElo "1303"]
[BlackElo "1111"]
[Annotator "NA"]
[PlyCount "81"]
[EventDate "2022.03.12"]
[EventType "swiss"]
[EventCountry "CZE"]
[SourceTitle "playchess.com"]
[Source "ChessBase"]
[SourceQuality "1"]
[TimeControl "40/5400+30:1800+30"]

1. e4 {[%emt 0:00:03]} e5 {[%emt 0:00:05]} 2. f4 {[%emt 0:00:03]} Bc5 {[%emt 0:00:17]} 3. Nf3 {[%emt 0:00:14]} d6 {[%emt 0:00:46]} 4. Bc4 {[%emt 0:00:37]} Nf6 {[%emt 0:05:09]} 5. Nc3 {[%emt 0:00:28]} a6 {[%emt 0:02:45]} 6. d3 {[%emt 0:05:34]} Nc6 {[%emt 0:01:52]} 7. fxe5 {[%emt 0:13:00]} dxe5 {[%emt 0:03:08]} 8. Bg5 {[%emt 0:04:25]} h6 {[%emt 0:04:39]} 9. Bh4 {[%emt 0:01:21]} g5 {[%emt 0:05:19]} 10. Bg3 {[%emt 0:06:48]} Bg4 {[%emt 0:04:52]} 11. Qd2 {[%emt 0:07:37]} Bxf3 {[%emt 0:00:55]} 12. gxf3 {[%emt 0:00:11]} Nd4 {[%emt 0:08:44]} 13. Qg2 {[%emt 0:07:40]} Qd6 {[%emt 0:11:05]} 14. O-O-O {[%emt 0:03:33]} b5 {[%emt 0:06:55]} 15. Bb3 {[%emt 0:05:55]} a5 {[%emt 0:06:12]} 16. Bf2 {[%emt 0:13:16]} a4 {[%emt 0:04:16]} 17. Bxd4 {[%emt 0:02:07]} Bxd4 {[%emt 0:02:41]} 18. Nxb5 {[%emt 0:02:38]} Be3+ {[%emt 0:01:44]} 19. Kb1 {[%emt 0:01:47]} Qb6 {[%emt 0:01:29]} 20. Bc4 {[%emt 0:03:55]} Ra5 {[%emt 0:03:51]} 21. a3 {[%emt 0:02:57]} Rxb5 {[%emt 0:00:52]} 22. Bxb5+ {[%emt 0:00:04]} Qxb5 {[%emt 0:00:06]} 23. c3 {[%emt 0:00:39]} O-O {[%emt 0:02:47]} 24. h4 {[%emt 0:02:49]} Rb8 {[%emt 0:05:21]} 25. hxg5 {[%emt 0:01:11]} hxg5 {[%emt 0:02:40]} 26. Rh3 {[%emt 0:02:51]} Bf4 {[%emt 0:02:10]} 27. Qc2 {[%emt 0:05:01]} c5 {[%emt 0:03:56]} 28. Rdh1 {[%emt 0:01:28]} Kg7 {[%emt 0:01:21]} 29. Ka1 {[%emt 0:01:32]} c4 {[%emt 0:01:11]} 30. dxc4 {[%emt 0:00:45]} Qxc4 {[%emt 0:00:06]} 31. Rd1 {[%emt 0:00:34]} Qc8 {[%emt 0:01:20]} 32. Rhh1 {[%emt 0:00:41]} Qc4 {[%emt 0:00:36]} 33. Rd6 {[%emt 0:00:47]} Qc5 {[%emt 0:01:04]} 34. Rhd1 {[%emt 0:00:37]} Ne8 {[%emt 0:00:41]} 35. Ra6 {[%emt 0:01:19]} Qb5 {[%emt 0:01:35]} 36. Rxa4 {[%emt 0:01:06]} Be3 {[%emt 0:01:11]} 37. Rb4 {[%emt 0:00:24]} Qa5 {[%emt 0:01:18]} 38. Rxb8 {[%emt 0:00:20]} Nc7 {[%emt 0:00:05]} 39. Qh2 {[%emt 0:00:36]} Kf6 {[%emt 0:00:22]} 40. Qh6+ {[%emt 0:00:28]} Ke7 {[%emt 0:00:05]} 41. Qd6# {[%emt 0:30:08]} 1-0

[Event "CZE-ch Youth G10-G12-G14 2022"]
[Site "Luhacovice"]
[Date "2022.03.17"]
[Round "7.21"]
[White "Rezacova Julie"]
[Black "Sochorova Valentyna"]
[Result "0-1"]
[ECO "B01"]
[WhiteElo "1063"]
[BlackElo "1201"]
[Annotator "NA"]
[PlyCount "96"]
[EventDate "2022.03.12"]
[EventType "swiss"]
[EventCountry "CZE"]
[SourceTitle "playchess.com"]
[Source "ChessBase"]
[SourceQuality "1"]
[TimeControl "40/5400+30:1800+30"]

1. e4 {[%emt 0:00:03]} d5 {[%emt 0:00:08]} 2. Bd3 {[%emt 0:00:46]} dxe4 {[%emt 0:02:11]} 3. Bxe4 {[%emt 0:00:07]} Nf6 {[%emt 0:01:36]} 4. Nc3 {[%emt 0:00:15]} e5 {[%emt 0:00:51]} 5. Nf3 {[%emt 0:00:08]} Bb4 {[%emt 0:02:40]} 6. d3 {[%emt 0:00:33]} Nxe4 {[%emt 0:02:55]} 7. dxe4 {[%emt 0:00:27]} Qxd1+ {[%emt 0:00:43]} 8. Kxd1 {[%emt 0:00:07]} Bg4 {[%emt 0:03:12]} 9. Nd5 {[%emt 0:00:53]} Bd6 {[%emt 0:05:27]} 10. Be3 {[%emt 0:00:42]} Nc6 {[%emt 0:06:13]} 11. Kd2 {[%emt 0:00:23]} Nb4 {[%emt 0:08:03]} 12. Rad1 {[%emt 0:01:00]} Nxd5 {[%emt 0:01:43]} 13. exd5 {[%emt 0:00:07]} e4 {[%emt 0:04:00]} 14. Rde1 {[%emt 0:00:23]} exf3 {[%emt 0:18:38]} 15. gxf3 {[%emt 0:00:07]} Bxf3 {[%emt 0:00:48]} 16. Rhg1 {[%emt 0:00:05]} Bxd5 {[%emt 0:01:03]} 17. Bd4+ {[%emt 0:00:52]} Kd7 {[%emt 0:03:10]} 18. b3 {[%emt 0:01:18]} Bf4+ {[%emt 0:02:21]} 19. Kc3 {[%emt 0:00:19]} c5 {[%emt 0:03:41]} 20. Bxc5 {[%emt 0:00:43]} Rac8 {[%emt 0:00:22]} 21. b4 {[%emt 0:00:32]} b6 {[%emt 0:02:21]} 22. Kd4 {[%emt 0:00:24]} Be6 {[%emt 0:01:53]} 23. Rxg7 {[%emt 0:02:22]} bxc5+ {[%emt 0:01:43]} 24. bxc5 {[%emt 0:00:25]} Bxh2 {[%emt 0:04:53]} 25. Rg2 {[%emt 0:01:09]} Bf4 {[%emt 0:03:46]} 26. Rd1 {[%emt 0:00:46]} Ke7 {[%emt 0:01:18]} 27. Re1 {[%emt 0:00:22]} Rhd8+ {[%emt 0:01:11]} 28. Ke4 {[%emt 0:00:20]} Bh6 {[%emt 0:03:33]} 29. Rh2 {[%emt 0:01:25]} Bg5 {[%emt 0:06:16]} 30. Rg2 {[%emt 0:00:14]} Rxc5 {[%emt 0:01:00]} 31. Rh2 {[%emt 0:02:56]} Kf8 {[%emt 0:02:49]} 32. Rxh7 {[%emt 0:00:20]} Bf5+ {[%emt 0:00:58]} 33. Kf3 {[%emt 0:00:35]} Rc3+ {[%emt 0:00:41]} 34. Re3 {[%emt 0:00:35]} Rxe3+ {[%emt 0:00:17]} 35. fxe3 {[%emt 0:00:07]} Bxh7 {[%emt 0:00:12]} 36. c4 {[%emt 0:00:16]} Rd3 {[%emt 0:00:43]} 37. Ke2 {[%emt 0:00:30]} Rxe3+ {[%emt 0:00:17]} 38. Kd2 {[%emt 0:00:07]} Rh3+ {[%emt 0:00:35]} 39. Ke1 {[%emt 0:00:55]} Rh2 {[%emt 0:00:20]} 40. Kf1 {[%emt 0:00:17]} f5 {[%emt 0:01:39]} 41. c5 {[%emt 0:30:12]} f4 {[%emt 0:30:25]} 42. c6 {[%emt 0:00:10]} f3 {[%emt 0:00:15]} 43. Kg1 {[%emt 0:00:32]} Rxa2 {[%emt 0:00:55]} 44. c7 {[%emt 0:00:14]} Bf5 {[%emt 0:00:12]} 45. c8=Q+ {[%emt 0:00:54]} Bxc8 {[%emt 0:00:30]} 46. Kf1 {[%emt 0:00:30]} Ba6+ {[%emt 0:00:21]} 47. Kg1 {[%emt 0:00:11]} Bf4 {[%emt 0:00:56]} 48. Kh1 {[%emt 0:00:40]} Ra1# {[%emt 0:00:12]} 0-1